bitfinex-derivatives/quotes_ETHF0:USTF0_20250503
["timestamp","ask_amount","ask_price","bid_price","bid_amount"]
[1746290135824,6.6848,1828.6,1828.4,1.7131]
[1746290136027,1.09363,1828.3,1828.2,1.5841]
[1746290136333,11.11019,1828.6,1827.8,3.2078]
[1746290136334,1.09373,1828.2,1827.8,3.2078]
[1746290136532,4.30153,1828.2,1828.1,0.7936]
[1746290137029,4.30153,1828.2,1828.1,2.4508]
[1746290137233,1.09369,1828.3,1828.1,3.54455]
[1746290137531,1.09369,1828.3,1828.2,1.6572]
[1746290137725,4.30149,1828.3,1828.2,1.6572]
[1746290137931,1.09369,1828.3,1828.2,1.6572]
[1746290138337,1.09362,1828.4,1828.2,2.75089]
[1746290138629,3.2078,1828.5,1828.4,1.09357]
[1746290138825,4.30131,1828.5,1828.4,1.09357]
[1746290139027,4.30131,1828.5,1828.4,3.54147]
[1746290139322,4.30131,1828.5,1828.4,2.4479]
[1746290139522,3.2078,1828.5,1828.4,3.54147]
[1746290139722,4.30131,1828.5,1828.4,3.54147]
[1746290139924,3.2078,1828.5,1828.4,3.54147]
[1746290140130,4.30131,1828.5,1828.4,3.718]
[1746290140332,3.2078,1828.5,1828.4,4.81157]
[1746290140531,4.30131,1828.5,1828.4,4.81157]
[1746290140733,3.2078,1828.5,1828.4,6.53047]
[1746290141236,4.30131,1828.5,1828.4,6.53047]
[1746290141425,3.2078,1828.5,1828.4,6.53047]
[1746290141627,3.2078,1828.7,1828.4,5.4369]
[1746290141828,1.09345,1828.6,1828.5,1.7189]
[1746290142437,3.2078,1828.9,1828.6,1.09345]
[1746290142735,1.55611441,1828.8,1828.7,1.7189]
[1746290142930,7.32721441,1828.8,1828.7,1.7189]
[1746290143127,11.04521441,1828.8,1828.7,1.7189]
[1746290143331,1.0935,1828.6,1828.4,2.77863]
[1746290143526,1.0935,1828.6,1828.5,1.7269]
[1746290143734,4.3013,1828.6,1828.5,1.7269]
[1746290144430,1.09363,1828.3,1828.0,3.2078]
[1746290144635,1.09363,1828.3,1828.1,2.77882]
[1746290145129,1.09369,1828.2,1828.1,1.6851]
[1746290145330,1.09369,1828.2,1828.1,2.77885]
[1746290145729,4.81168,1828.3,1828.1,2.77885]
[1746290145936,4.81168,1828.3,1828.2,1.7356]
[1746290146137,1.09368,1828.3,1828.2,1.7356]
[1746290146732,2.73439,1828.1,1827.6,4.3018]
[1746290147029,1.09393,1827.8,1827.7,0.8054]
[1746290147833,1.09393,1827.8,1827.6,1.7356]
[1746290147834,1.09399,1827.7,1827.6,1.7356]
[1746290148034,1.7015,1827.9,1827.6,2.82963]
[1746290148234,7.81764,1828.0,1827.8,1.09393]
[1746290148436,7.81764,1828.0,1827.7,2.82954]
[1746290148638,1.09387,1827.9,1827.8,1.7356]
[1746290148834,3.2078,1828.0,1827.8,3.6349]
[1746290149038,4.30162,1828.0,1827.9,0.8011]
[1746290149237,4.76447305,1828.0,1827.9,2.5251]
[1746290149431,4.76448163,1828.0,1827.9,1.724]
[1746290149632,5.12671012,1828.0,1827.9,1.724]
[1746290149931,1.09387,1827.9,1827.8,3.718]
[1746290150138,1.55673163,1827.9,1827.8,5.442]
[1746290150838,1.91901837,1827.9,1827.8,3.718]
[1746290151037,4.50831837,1827.9,1827.8,3.718]
[1746290151241,9.50861761,1827.9,1827.8,3.718]
[1746290151432,4.50257551,1827.9,1827.8,3.718]
[1746290151839,1.91327551,1827.9,1827.8,3.718]
[1746290152740,3.2078,1828.0,1827.8,3.718]
[1746290153039,3.2078,1828.0,1827.9,2.4811]
[1746290153246,5.12790043,1828.0,1827.9,3.3069]
[1746290153640,3.6713279,1828.0,1827.9,4.40077]
[1746290154335,3.6713279,1828.0,1827.9,8.11877]
[1746290154839,3.67175561,1828.0,1827.9,8.11877]
[1746290155541,4.76556561,1828.0,1827.9,7.0249]
[1746290155841,5.12870051,1828.0,1827.9,7.0249]
[1746290156142,5.12877309,1828.0,1827.9,8.11877]
[1746290156336,3.67175561,1828.0,1827.9,8.11877]
[1746290156642,3.6718869,1828.0,1827.9,8.11877]
[1746290156942,4.7656969,1828.0,1827.9,8.11877]
[1746290157145,5.1289842,1828.0,1827.9,7.0249]
[1746290158131,5.1289842,1828.0,1827.9,6.1991]
[1746290158337,5.1289842,1828.0,1827.9,5.3994]
[1746290158641,5.1289842,1828.0,1827.9,3.718]
[1746290159243,1.09387,1827.9,1827.8,1.6454]
[1746290159444,1.9212442,1827.9,1827.8,1.6454]
[1746290160145,3.6016442,1827.9,1827.8,1.6454]
[1746290160345,3.60166724,1827.9,1827.8,1.6454]
[1746290161446,3.60167294,1827.9,1827.8,1.6454]
[1746290162239,4.45097294,1827.9,1827.8,3.718]
[1746290163240,4.45088955,1827.9,1827.8,3.718]
[1746290164139,9.45088955,1827.9,1827.4,5.63910811]
[1746290164444,9.45088955,1827.9,1827.2,1.6502]
[1746290164445,1.09423,1827.3,1827.2,1.6502]
[1746290164844,1.55820191,1827.3,1827.2,1.6502]
[1746290165034,1.55804558,1827.3,1827.2,1.6502]
[1746290165237,1.92095361,1827.3,1827.2,5.3682]
[1746290165635,3.61945361,1827.3,1827.2,5.3682]
[1746290165847,3.61945361,1827.3,1827.2,3.718]
[1746290166048,8.61945361,1827.3,1827.2,2.44673]
[1746290166345,7.5249782,1827.3,1826.3,14.13556052]
[1746290166547,4.30257,1826.4,1826.3,10.92776052]
[1746290166736,8.72721361,1826.4,1826.3,10.92776052]
[1746290166941,8.72616456,1826.4,1826.3,10.92776052]
[1746290167141,8.7260208,1826.4,1826.3,10.92776052]
[1746290167342,8.72599072,1826.4,1826.3,10.92776052]
[1746290167538,9.15729193,1826.4,1826.3,10.92776052]
[1746290168141,5.55829193,1826.4,1826.3,10.92776052]
[1746290168351,9.15730478,1826.4,1826.3,10.92776052]
[1746290168851,5.19542734,1826.4,1826.3,10.92776052]
[1746290169042,4.10065734,1826.4,1826.3,10.92776052]
[1746290169245,3.63912865,1826.4,1826.3,14.64576052]
[1746290169439,3.63912865,1826.4,1826.3,15.74059052]
[1746290169747,1.0947,1826.6,1826.3,20.74057052]
[1746290169955,4.30251,1826.5,1826.4,1.7294]
[1746290170246,3.2078,1826.5,1826.4,2.82417]
[1746290170453,3.2078,1826.7,1826.5,1.09469]
[1746290170746,3.2078,1826.7,1826.4,6.7294]
[1746290170747,4.30239,1826.7,1826.6,1.5954]
[1746290170955,3.2078,1826.9,1826.6,1.5954]
[1746290171251,1.09453,1826.8,1826.7,0.7895]
[1746290171441,6.81675445,1826.9,1826.7,1.88405]
[1746290171646,6.81675445,1826.9,1826.8,2.68993]
[1746290172048,3.60895445,1826.9,1826.8,14.13463811]
[1746290172248,3.60895445,1826.9,1826.8,17.85263811]
[1746290172547,5.44308497,1827.0,1826.9,1.09447]
[1746290172954,5.44308497,1827.0,1826.9,9.69447]
[1746290173162,5.44308497,1827.0,1826.9,13.41247]
[1746290174154,4.30206,1827.3,1827.1,1.09435]
[1746290174452,1.09429,1827.2,1827.0,1.09438]
[1746290174641,3.2078,1827.3,1826.9,7.318]
[1746290174842,1.09441,1827.0,1826.9,7.318]
[1746290175147,1.09441,1827.0,1826.9,3.718]
[1746290175450,1.55572698,1827.0,1826.9,3.718]
[1746290175641,1.55572855,1827.0,1826.9,3.718]
[1746290175853,1.55572855,1827.0,1826.9,5.4132]
[1746290176354,1.09441,1827.0,1826.9,5.4132]
[1746290177053,1.55583203,1827.0,1826.9,5.4132]
[1746290177255,3.16893034,1827.0,1826.9,5.4132]
[1746290177450,0.46142034,1827.0,1826.9,5.4132]
[1746290177654,3.2078,1827.1,1826.9,5.4132]
[1746290178053,1.09441,1827.0,1826.9,5.4132]
[1746290178555,3.2078,1827.1,1826.9,5.4132]
[1746290179053,1.5558628,1827.0,1826.9,5.4132]
[1746290179358,1.09451,1826.9,1826.7,0.8406]
[1746290179654,4.30231,1826.9,1826.8,1.7179]
[1746290179853,6.51685059,1826.9,1826.7,0.8406]
[1746290180050,6.05539,1826.9,1826.7,6.2765]
[1746290180556,6.0554,1826.9,1826.7,7.37108]
[1746290181161,1.09453,1826.8,1826.7,6.2765]
[1746290181457,2.84763,1826.8,1826.7,6.2765]
[1746290181758,3.30902783,1826.8,1826.7,6.2765]
[1746290181951,3.73502401,1826.8,1826.7,6.2765]
[1746290182157,4.09601198,1826.8,1826.7,3.718]
[1746290183154,0.88739401,1826.8,1826.7,4.81259]
[1746290183359,1.24840604,1826.8,1826.7,4.81259]
[1746290183558,0.42599618,1826.8,1826.7,4.81259]
[1746290184447,0.42599618,1826.8,1826.7,9.81259]
[1746290184651,3.2078,1827.1,1826.8,1.0945]
[1746290184846,4.807,1827.1,1826.8,3.58163]
[1746290185052,1.5560627,1827.0,1826.8,3.58163]
[1746290185358,4.807,1827.1,1826.9,1.6491]
[1746290185657,5.9014,1827.1,1826.9,2.74357]
[1746290185856,3.2078,1827.1,1827.0,1.09441]
[1746290186158,5.19050333,1827.1,1827.0,1.7436]
[1746290186554,1.09441,1827.0,1826.9,3.718]
[1746290186753,3.97955807,1827.0,1826.9,3.718]
[1746290189253,3.97955807,1827.0,1826.7,1.7436]
[1746290189254,1.09453,1826.8,1826.7,1.7436]
[1746290189454,1.55748615,1826.8,1826.7,1.7436]
[1746290189653,1.91973646,1826.8,1826.7,1.7436]
[1746290190055,2.34618641,1826.8,1826.7,1.7436]
[1746290190255,2.34618641,1826.8,1826.7,5.4616]
[1746290190452,3.94948641,1826.8,1826.7,5.4616]
[1746290191065,2.34618641,1826.8,1826.7,5.4616]
[1746290191264,2.3462362,1826.8,1826.7,1.7436]
[1746290192057,1.2517062,1826.8,1826.7,6.55619]
[1746290192263,0.88943411,1826.8,1826.7,11.55619]
[1746290192461,0.42644995,1826.8,1826.7,11.55619]
[1746290195167,0.42644995,1826.8,1826.7,6.55619]
[1746290195865,0.42644995,1826.8,1826.7,12.19529811]
[1746290196061,0.42644995,1826.8,1826.7,17.19529811]
[1746290196265,1.0943,1827.2,1827.1,1.09432]
[1746290196457,1.92160672,1827.2,1827.1,1.09435]
[1746290196663,1.921603,1827.2,1827.1,1.09435]
[1746290196968,1.09439,1827.1,1827.0,1.0944]
[1746290197161,1.921663,1827.1,1827.0,1.6541]
[1746290197366,1.09441,1827.0,1826.9,5.63910811]
[1746290197557,1.921683,1827.0,1826.9,5.63910811]
[1746290198160,1.921683,1827.0,1826.9,9.35710811]
[1746290198466,1.92191826,1827.0,1826.9,9.35710811]
[1746290198668,3.56251826,1827.0,1826.9,9.35710811]
[1746290198966,3.56251826,1827.0,1826.9,3.718]
[1746290199267,3.56251826,1827.0,1826.5,4.72369]
[1746290199268,1.09465,1826.6,1826.5,1.6018]
[1746290199566,1.09471,1826.5,1826.3,2.7996]
[1746290199765,2.73531,1826.5,1826.4,1.6018]
[1746290199965,6.77132691,1826.5,1826.4,1.6018]
[1746290200267,6.77132691,1826.5,1826.4,5.3198]
[1746290200961,6.77132691,1826.5,1826.4,3.718]
[1746290201264,1.09487,1826.3,1826.1,1.09493]
[1746290201573,4.30263,1826.3,1826.2,1.601]
[1746290201773,5.13009154,1826.3,1826.2,1.601]
[1746290202164,0.82746154,1826.3,1826.2,6.41389]
[1746290202471,0.46423582,1826.3,1826.2,6.41389]
[1746290203069,0.82741727,1826.3,1826.2,6.41389]
[1746290203470,4.30263,1826.3,1826.2,3.718]
[1746290203775,6.73248787,1826.3,1826.2,3.718]
[1746290203969,10.36248787,1826.3,1826.2,3.718]
[1746290204375,15.36248787,1826.3,1826.2,3.718]
[1746290205164,6.73248787,1826.3,1826.2,3.718]
[1746290205369,15.36213762,1826.3,1826.2,3.718]
[1746290205570,15.36179352,1826.3,1826.2,3.718]
[1746290206676,15.36110305,1826.3,1826.2,3.718]
[1746290207178,15.36109288,1826.3,1826.2,3.718]
[1746290207479,15.36109288,1826.3,1826.2,1.4e-06]
[1746290207978,6.73109288,1826.3,1826.2,1.4e-06]
[1746290208281,10.36109288,1826.3,1826.2,1.4e-06]
[1746290208472,6.73109288,1826.3,1826.2,1.4e-06]
[1746290208671,10.78433952,1826.3,1826.2,1.4e-06]
[1746290208975,10.78372475,1826.3,1826.2,1.4e-06]
[1746290209176,10.78372772,1826.3,1826.2,1.4e-06]
[1746290209478,7.15372772,1826.3,1826.2,1.4e-06]
[1746290209778,5.55112772,1826.3,1826.2,1.4e-06]
[1746290210173,5.55112772,1826.3,1826.2,1.7454014]
[1746290210979,5.55099226,1826.3,1826.2,1.7454014]
[1746290211776,4.09396559,1826.3,1826.2,2.8402914]
[1746290212180,3.63104664,1826.3,1826.2,7.8402914]
[1746290213577,0.42324664,1826.3,1826.2,7.8402914]
[1746290216081,0.42324664,1826.3,1826.2,2.8402914]
[1746290217586,0.42324664,1826.3,1826.2,8.47939951]
[1746290217780,0.42324664,1826.3,1826.2,11.68719951]
[1746290217987,1.09478,1826.4,1826.3,1.09479]
[1746290218285,1.09478,1826.4,1826.3,3.718]
[1746290218679,1.51824728,1826.4,1826.3,3.718]
[1746290218886,1.51824728,1826.4,1826.3,4.81283]
[1746290219387,1.51824728,1826.4,1826.3,3.718]
[1746290219588,1.51824728,1826.4,1826.3,4.81283]
[1746290219888,1.51824728,1826.4,1826.3,3.718]
[1746290220090,4.72604728,1826.4,1826.3,3.718]
[1746290220279,5.55168642,1826.4,1826.3,3.718]
[1746290220485,10.55168642,1826.4,1826.3,3.718]
[1746290220898,12.23198642,1826.4,1826.3,3.718]
[1746290221189,1.09502,1826.0,1825.8,1.94979]
[1746290221695,3.2078,1826.1,1825.8,0.8547]
[1746290221883,0.42346728,1825.9,1825.8,0.8547]
[1746290222083,0.42346728,1825.9,1825.8,4.5727]
[1746290222285,1.51853728,1825.9,1825.8,5.6678]
[1746290222485,0.42346728,1825.9,1825.8,5.66783]
[1746290226594,1.51903617,1825.9,1825.8,5.66783]
[1746290227092,0.42396617,1825.9,1825.8,5.66783]
[1746290227681,0.41866887,1825.9,1825.8,5.66783]
[1746290228487,0.41866887,1825.9,1825.8,11.30693811]
[1746290228796,1.09491,1826.2,1826.1,1.09492]
[1746290229091,1.55921706,1826.2,1826.1,1.09492]
[1746290229293,0.46430706,1826.2,1826.1,1.09492]
[1746290229494,0.46430706,1826.2,1826.1,1.90712]
[1746290229682,1.55926421,1826.2,1826.1,1.90712]
[1746290230285,1.92261909,1826.2,1826.1,0.8122]
[1746290230890,1.92258588,1826.2,1826.1,0.8122]
[1746290231096,1.92260758,1826.2,1826.1,0.8122]
[1746290231293,1.92260758,1826.2,1826.1,1.90715]
[1746290231493,1.92260758,1826.2,1826.1,0.8122]
[1746290231898,1.92260758,1826.2,1826.0,9.35710811]
[1746290231899,1.09495,1826.1,1826.0,9.35710811]
[1746290232188,1.92266758,1826.1,1826.0,3.718]
[1746290232695,1.92266758,1826.1,1826.0,4.81301]
[1746290233091,1.09495,1826.1,1826.0,4.81301]
[1746290233394,1.92269073,1826.1,1826.0,4.81301]
[1746290233593,5.13049073,1826.1,1826.0,3.718]
[1746290233800,5.13049073,1826.1,1826.0,5.4225]
[1746290234904,5.13043711,1826.1,1826.0,5.4225]
[1746290235702,5.13043711,1826.1,1826.0,3.718]
[1746290236094,5.98903711,1826.1,1826.0,3.718]
[1746290236795,5.98938815,1826.1,1826.0,3.718]
[1746290237393,5.98935758,1826.1,1826.0,3.718]
[1746290237802,9.66335758,1826.1,1826.0,3.718]
[1746290238096,14.66335758,1826.1,1826.0,3.29933113]
[1746290238500,14.66336309,1826.1,1826.0,3.29933113]
[1746290238796,5.98936309,1826.1,1826.0,3.29933113]
[1746290239191,7.56986309,1826.1,1826.0,3.29933113]
[1746290239602,12.56986309,1826.1,1826.0,3.29933113]
[1746290239802,7.56986309,1826.1,1826.0,3.29933113]
[1746290240098,7.5698695,1826.1,1826.0,3.29933113]
[1746290240701,7.99037526,1826.1,1826.0,3.29933113]
[1746290241096,6.03682526,1826.1,1826.0,4.39434113]
[1746290241296,7.13177526,1826.1,1826.0,4.96703113]
[1746290241497,7.13177526,1826.1,1826.0,3.29933113]
[1746290242096,7.1317881,1826.1,1826.0,3.29933113]
[1746290242297,7.1317881,1826.1,1826.0,4.96703113]
[1746290242905,4.4563381,1826.1,1826.0,6.06204113]
[1746290243100,4.4563381,1826.1,1826.0,6.87614113]
[1746290243295,4.4563381,1826.1,1826.0,5.78113113]
[1746290243503,5.5512881,1826.1,1826.0,5.78113113]
[1746290243898,5.55163832,1826.1,1826.0,5.78113113]
[1746290244199,4.45668832,1826.1,1826.0,6.87614113]
[1746290244906,5.55163832,1826.1,1826.0,5.78113113]
[1746290245499,5.55238337,1826.1,1826.0,5.78113113]
[1746290245804,5.55238337,1826.1,1826.0,3.29933113]
[1746290246396,15.85998337,1826.1,1826.0,3.29933113]
[1746290247304,15.85976262,1826.1,1826.0,2.15789113]
[1746290247504,10.85976262,1826.1,1826.0,2.15789113]
[1746290247905,10.85988278,1826.1,1826.0,2.15789113]
[1746290248299,6.39478278,1826.1,1826.0,2.15789113]
[1746290248502,9.22628278,1826.1,1826.0,2.15789113]
[1746290249009,9.22672306,1826.1,1826.0,2.15789113]
[1746290249509,9.22672306,1826.1,1826.0,4.72339113]
[1746290249712,9.92503282,1826.1,1826.0,4.72339113]
[1746290250013,5.15608282,1826.1,1826.0,5.81840113]
[1746290250410,1.58417754,1826.1,1826.0,10.81840113]
[1746290250704,1.11881552,1826.1,1826.0,10.81840113]
[1746290253107,1.11881552,1826.1,1826.0,5.81840113]
[1746290253410,1.58414725,1826.1,1826.0,5.81840113]
[1746290253609,3.04318561,1826.1,1826.0,5.81840113]
[1746290254513,3.04319039,1826.1,1826.0,5.81840113]
[1746290254811,1.94824039,1826.1,1826.0,5.81840113]
[1746290255011,2.34488063,1826.1,1826.0,4.72339113]
[1746290255510,2.34488063,1826.1,1826.0,5.81840113]
[1746290255710,4.45773063,1826.1,1826.0,5.81840113]
[1746290256411,4.45775344,1826.1,1826.0,5.81840113]
[1746290256709,1.24995344,1826.1,1826.0,5.81840113]
[1746290257209,0.42050576,1826.1,1826.0,5.81840113]
[1746290257407,6.01659,1826.6,1826.5,1.09471]
[1746290257607,6.84616068,1826.6,1826.5,1.09471]
[1746290257809,1.0948,1826.4,1826.3,1.09481]
[1746290258112,5.75147068,1826.6,1826.4,1.09477]
[1746290258113,1.09476,1826.5,1826.4,1.09477]
[1746290258311,1.92421383,1826.5,1826.4,2.80637]
[1746290258614,0.82945383,1826.5,1826.4,2.80637]
[1746290259310,0.82945383,1826.5,1826.4,6.52437]
[1746290259816,0.8294115,1826.5,1826.4,6.52437]
[1746290261415,1.9241215,1826.5,1826.4,3.718]
[1746290261608,3.60818154,1826.5,1826.4,3.718]
[1746290263413,4.46062635,1826.5,1826.4,3.718]
[1746290263816,13.94612635,1826.5,1826.4,3.718]
[1746290265114,1.09489,1826.2,1826.1,5.63910811]
[1746290265314,1.09495,1826.1,1826.0,2.5224]
[1746290265621,1.09501,1826.0,1825.9,0.8054]
[1746290265816,5.13158401,1826.0,1825.9,0.8054]
[1746290266017,6.80308401,1826.0,1825.9,0.8054]
[1746290266218,6.80308401,1826.0,1825.9,4.5234]
[1746290266620,6.80308401,1826.0,1825.9,3.718]
[1746290266916,6.80306031,1826.0,1825.9,3.718]
[1746290268613,6.80277253,1826.0,1825.9,3.718]
[1746290268914,11.80277253,1826.0,1825.9,3.29749424]
[1746290269308,11.80253387,1826.0,1825.9,3.29749424]
[1746290269511,11.80253325,1826.0,1825.9,3.29749424]
[1746290270313,11.80253325,1826.0,1825.9,2.05712424]
[1746290270513,11.80233285,1826.0,1825.9,2.05712424]
[1746290270714,12.50054073,1826.0,1825.9,2.05712424]
[1746290271419,7.50054073,1826.0,1825.9,2.05712424]
[1746290271623,11.16254073,1826.0,1825.9,2.05712424]
[1746290271814,7.50054073,1826.0,1825.9,2.05712424]
[1746290272019,5.82904073,1826.0,1825.9,2.05712424]
[1746290272217,4.26945747,1826.0,1825.9,8.15219424]
[1746290272420,4.73398684,1826.0,1825.9,8.15219424]
[1746290272919,0.69820788,1826.0,1825.9,8.15219424]
[1746290273223,1.16274361,1826.0,1825.9,8.15219424]
[1746290273526,1.16274361,1826.0,1825.9,9.76829424]
[1746290274022,0.69820788,1826.0,1825.9,9.76829424]
[1746290274719,0.69820788,1826.0,1825.9,4.76829424]
[1746290274919,1.16272723,1826.0,1825.9,3.67322424]
[1746290275120,2.25773723,1826.0,1825.9,3.67322424]
[1746290275321,0.46451935,1826.0,1825.9,4.76829424]
[1746290275517,5.92594,1826.2,1826.0,1.09501]
[1746290275723,5.92594,1826.2,1826.1,1.5967]
[1746290275922,6.75394922,1826.2,1826.1,1.5967]
[1746290277519,1.09495,1826.1,1826.0,3.718]
[1746290277718,3.6091019,1826.1,1826.0,3.718]
[1746290279228,3.60910557,1826.1,1826.0,3.718]
[1746290281032,3.60910173,1826.1,1826.0,5.4422]
[1746290282121,1.92310173,1826.1,1826.0,5.4422]
[1746290282830,1.92310173,1826.1,1826.0,3.718]
[1746290283127,3.59340173,1826.1,1826.0,3.718]
[1746290283927,3.59345374,1826.1,1826.0,3.718]
[1746290285625,3.59335351,1826.1,1826.0,3.718]
[1746290287025,3.59335351,1826.1,1826.0,4.5078]
[1746290287230,7.25535351,1826.1,1826.0,4.5078]
[1746290287528,5.58512416,1826.1,1826.0,4.5078]
[1746290287930,1.92312416,1826.1,1826.0,4.5078]
[1746290288437,3.65702416,1826.1,1826.0,3.718]
[1746290288729,1.92312416,1826.1,1826.0,3.718]
[1746290289323,1.92347979,1826.1,1826.0,3.718]
[1746290290033,3.56007979,1826.1,1826.0,3.718]
[1746290291033,3.56034902,1826.1,1826.0,3.718]
[1746290292732,3.5609398,1826.1,1826.0,3.718]
[1746290292935,4.3596398,1826.1,1826.0,3.718]
[1746290294236,3.5609398,1826.1,1826.0,3.718]
[1746290294630,3.56119994,1826.1,1826.0,3.718]
[1746290294832,6.70957168,1826.1,1826.0,3.718]
[1746290295133,7.175036,1826.1,1826.0,3.718]
[1746290295838,12.175036,1826.1,1826.0,2.59125]
[1746290296031,12.175036,1826.1,1826.0,7.2e-06]
[1746290296226,7.17486644,1826.1,1826.0,7.2e-06]
[1746290297431,10.82886644,1826.1,1826.0,7.2e-06]
[1746290298135,10.81429505,1826.1,1826.0,7.2e-06]
[1746290299841,14.80404825,1826.1,1826.0,7.2e-06]
[1746290300141,1.09501,1826.0,1825.9,1.7108072]
[1746290300344,6.75493485,1826.0,1825.9,1.7108072]
[1746290301142,6.75493485,1826.0,1825.9,5.4288072]
[1746290301637,6.7550762,1826.0,1825.9,5.4288072]
[1746290302338,5.1179762,1826.0,1825.9,5.4288072]
[1746290305038,4.65276249,1826.0,1825.9,5.4288072]
[1746290305240,5.11845536,1826.0,1825.9,5.4288072]
[1746290306937,5.11871852,1826.0,1825.9,5.4288072]
[1746290308245,4.02370852,1826.0,1825.9,6.5238772]
[1746290308443,5.11871852,1826.0,1825.9,5.4288072]
[1746290308746,5.11877305,1826.0,1825.9,5.4288072]
[1746290309045,4.02376305,1826.0,1825.9,6.5238772]
[1746290309245,5.11877305,1826.0,1825.9,5.4288072]
[1746290310340,4.65293216,1826.0,1825.9,5.4288072]
[1746290310543,5.11878027,1826.0,1825.9,5.4288072]
[1746290311445,4.02377027,1826.0,1825.9,6.5238772]
[1746290311745,4.02377027,1826.0,1825.9,11.5238772]
[1746290312045,0.46584811,1826.0,1825.9,11.5238772]
[1746290312945,1.09497,1826.1,1826.0,1.09497]
[1746290313145,1.56080316,1826.1,1826.0,3.58827]
[1746290313449,1.56080316,1826.1,1826.0,8.58827]
[1746290313632,1.56080316,1826.1,1826.0,1.93237]
[1746290313946,1.56063587,1826.1,1826.0,1.93237]
[1746290314140,1.56063587,1826.1,1826.0,5.65037]
[1746290314641,0.46568587,1826.1,1826.0,5.65037]
[1746290315040,3.2078,1826.2,1826.1,1.09495]
[1746290315247,4.02329063,1826.2,1826.1,1.09495]
[1746290315449,4.76828497,1826.2,1826.1,1.09495]
[1746290315644,3.67339497,1826.2,1826.0,4.5554]
[1746290315839,1.56039959,1826.1,1826.0,4.5554]
[1746290316044,1.91015027,1826.1,1826.0,4.5554]
[1746290316641,1.91015027,1826.1,1826.0,5.65041]
[1746290316849,1.91015027,1826.1,1826.0,4.5554]
[1746290317047,1.91015027,1826.1,1826.0,5.65041]
[1746290317446,1.90999726,1826.1,1826.0,5.65041]
[1746290317643,0.81504726,1826.1,1826.0,5.65041]
[1746290319252,1.90999726,1826.1,1826.0,5.65041]
[1746290319548,0.81504726,1826.1,1826.0,5.65041]
[1746290319852,1.90999726,1826.1,1826.0,5.65041]
[1746290320153,0.81504726,1826.1,1826.0,5.65041]
[1746290320656,1.90999726,1826.1,1826.0,4.5554]
[1746290321155,1.90987869,1826.1,1826.0,4.5554]
[1746290324155,0.81492869,1826.1,1826.0,5.65041]
[1746290324558,0.81482949,1826.1,1826.0,5.65041]
[1746290326060,0.46524639,1826.1,1826.0,5.65041]
[1746290328156,3.2078,1826.2,1826.1,1.09495]
[1746290328356,4.02321712,1826.2,1826.1,2.74405]
[1746290328560,5.11810712,1826.2,1826.1,2.74405]
[1746290329065,4.02321712,1826.2,1826.1,2.74405]
[1746290329263,5.11810712,1826.2,1826.1,2.74405]
[1746290329565,4.02336653,1826.2,1826.1,2.74405]
[1746290330165,4.02336936,1826.2,1826.1,2.74405]
[1746290330362,5.11825936,1826.2,1826.1,2.74405]
[1746290330665,4.02336936,1826.2,1826.1,2.74405]
[1746290331165,0.81556936,1826.2,1826.1,2.74405]
[1746290331463,0.46564019,1826.2,1826.1,2.74405]
[1746290332261,4.3026,1826.4,1826.3,1.09483]
[1746290332262,3.2078,1826.4,1826.3,1.09483]
[1746290332566,0.46595889,1826.4,1826.3,1.09483]
[1746290332863,0.81614066,1826.4,1826.3,4.72183]
[1746290333059,0.81614066,1826.4,1826.3,10.85053]
[1746290333461,0.46595889,1826.4,1826.3,10.85053]
[1746290334372,6.8228483,1826.6,1826.5,1.09471]
[1746290334571,7.6387628,1826.6,1826.5,1.09471]
[1746290335373,7.6387628,1826.6,1826.5,4.81271]
[1746290336267,7.16776888,1826.7,1826.6,1.09465]
[1746290336469,7.16776888,1826.7,1826.6,4.48225]
[1746290336773,5.42006888,1826.7,1826.6,8.10925]
[1746290337075,1.7477,1826.9,1826.8,1.09453]
[1746290337278,9.08715981,1827.0,1826.9,1.09447]
[1746290337574,8.67144076,1827.0,1826.9,7.92927]
[1746290338178,6.5186505,1827.1,1827.0,1.09441]
[1746290338378,6.5186505,1827.1,1827.0,3.62901]
[1746290338677,5.4242905,1827.1,1827.0,3.62901]
[1746290338878,6.5186405,1827.1,1827.0,2.5346]
[1746290339076,6.5186405,1827.1,1827.0,6.2526]
[1746290339376,6.5186405,1827.1,1827.0,7.34701]
[1746290339579,5.4242905,1827.1,1827.0,7.34701]
[1746290340683,7.0726905,1827.1,1827.0,6.52661]
[1746290341178,13.1670405,1827.1,1827.0,3.718]
[1746290341679,8.1670405,1827.1,1827.0,3.718]
[1746290341978,5.4242905,1827.1,1827.0,4.81241]
[1746290342181,5.4242905,1827.1,1827.0,6.54991]
[1746290342678,5.4242905,1827.1,1827.0,7.38261]
[1746290343482,6.81007,1827.4,1827.3,1.09423]
[1746290343681,5.7159,1827.4,1827.3,1.09423]
[1746290343878,5.7159,1827.4,1827.1,4.8044]
[1746290343879,6.81007,1827.4,1827.2,4.72025]
[1746290344180,6.81007,1827.4,1827.3,1.09423]
[1746290344376,6.81007,1827.4,1827.3,2.69083]
[1746290344377,5.7159,1827.4,1827.3,2.69083]
[1746290344575,0.8597,1827.4,1827.3,2.69083]
[1746290344776,1.88413,1827.5,1827.3,2.69083]
[1746290344976,3.58293,1827.5,1827.4,1.5966]
[1746290345177,3.58293,1827.5,1827.4,5.3146]
[1746290348179,4.37633636,1827.5,1827.4,5.3146]
[1746290348382,0.4569884,1827.5,1827.4,6.40877]
[1746290348578,1.09411,1827.5,1827.4,5.3146]
[1746290348775,1.55101449,1827.5,1827.4,5.3146]
[1746290349082,3.1940085,1827.5,1827.4,5.3146]
[1746290349786,1.5510085,1827.5,1827.4,5.3146]
[1746290350176,1.09408,1827.6,1827.4,7.21297]
[1746290350380,1.09408,1827.6,1827.5,1.6389]
[1746290350583,1.55076828,1827.6,1827.5,1.6389]
[1746290350783,0.45668828,1827.6,1827.5,2.73301]
[1746290351083,1.09398,1827.8,1827.6,1.09401]
[1746290351280,1.09398,1827.8,1827.7,3.3069]
[1746290351479,1.55072265,1827.8,1827.7,3.3069]
[1746290352078,1.55072265,1827.8,1827.7,7.0249]
[1746290352582,1.55063675,1827.8,1827.7,7.0249]
[1746290353085,0.45665675,1827.8,1827.7,8.11889]